bitfinex-derivatives/quotes_ETHF0:USTF0_20230106
["timestamp","ask_amount","ask_price","bid_price","bid_amount"]
[1673005794432,3.00218356,1244.1,1243.9,1.80599255]
[1673005796956,3.00218356,1244.0,1243.9,1.80599255]
[1673005797163,3.00218356,1244.1,1243.9,1.80599255]
[1673005797477,3.00218356,1244.0,1243.9,1.80599255]
[1673005797796,3.00218356,1244.1,1243.9,1.80599255]
[1673005801478,3.00218356,1244.0,1243.8,7.42310791]
[1673005802945,3.00218356,1244.0,1243.8,5.01379255]
[1673005805365,6.20998356,1244.0,1243.8,5.01379255]
[1673005807465,3.00218356,1244.0,1243.8,1.80599255]
[1673005810622,2.39979465,1243.9,1243.8,1.80599255]
[1673005814925,5.40197821,1243.9,1243.8,1.80599255]
[1673005816296,3.00218356,1243.9,1243.8,1.80599255]
[1673005817337,3.60458445,1244.0,1243.7,7.42310791]
[1673005817552,2.4016522,1243.8,1243.7,7.42310791]
[1673005817763,2.4016522,1243.8,1243.7,5.01379255]
[1673005818819,5.40371745,1243.8,1243.7,5.01379255]
[1673005819242,2.4016522,1243.8,1243.7,5.01379255]
[1673005819444,2.4016522,1243.8,1243.7,1.80599255]
[1673005820498,2.4016522,1243.8,1243.7,2.40931536]
[1673005820711,2.4016522,1243.8,1243.7,3.83460799]
[1673005821551,5.40371745,1243.9,1243.7,6.8461023]
[1673005821752,5.40371745,1243.9,1243.8,5.01507484]
[1673005824596,2.4016522,1243.9,1243.8,7.04229563]
[1673005824805,2.4016522,1243.9,1243.8,7.04229533]
[1673005826699,2.4016522,1243.9,1243.8,5.61711536]
[1673005833320,5.40371745,1243.9,1243.8,5.61711536]
[1673005834679,3.00206525,1243.9,1243.8,5.01555022]
[1673005835517,3.00206525,1243.9,1243.8,1.80775022]
[1673005842567,3.60458445,1244.0,1243.8,1.80775022]
[1673005842984,3.00562027,1243.9,1243.8,1.80775022]
[1673005846979,6.81238445,1244.0,1243.8,1.80775022]
[1673005847192,11.01731011,1244.0,1243.7,7.42486558]
[1673005847501,3.00849263,1243.8,1243.7,7.42486558]
[1673005849187,3.00849263,1243.8,1243.7,5.01555022]
[1673005849497,3.00849263,1243.8,1243.7,7.42486558]
[1673005849720,3.00849263,1243.8,1243.7,5.01555022]
[1673005849924,2.40864429,1243.8,1243.7,7.04242341]
[1673005851186,5.41713692,1243.8,1243.7,7.04242341]
[1673005851610,2.40864429,1243.8,1243.7,7.04242341]
[1673005852231,5.41713692,1243.8,1243.7,5.61711536]
[1673005853287,5.41713692,1243.8,1243.7,2.40931536]
[1673005853499,3.00849263,1243.8,1243.7,4.21716707]
[1673005855387,5.41569962,1243.8,1243.7,4.21716707]
[1673005856230,5.40963712,1243.8,1243.7,4.21716707]
[1673005857073,5.40963712,1243.8,1243.7,2.40931536]
[1673005858116,5.40963712,1243.8,1243.7,5.61711536]
[1673005858860,5.40963712,1243.8,1243.7,7.42490123]
[1673005859372,3.00243013,1243.8,1243.7,7.42490123]
[1673005861387,3.00243013,1243.8,1243.7,5.01558587]
[1673005862016,3.00243013,1243.8,1243.7,1.80778587]
[1673005862749,3.00243013,1243.8,1243.7,2.40931536]
[1673005862955,2.40693229,1243.8,1243.7,2.40931536]
[1673005863166,2.40693229,1243.8,1243.7,3.83461035]
[1673005865062,2.40693229,1243.8,1243.7,7.04241035]
[1673005866851,2.40693229,1243.8,1243.7,3.83461035]
[1673005867056,2.40693229,1243.8,1243.7,7.04241035]
[1673005868215,2.40693229,1243.8,1243.7,3.83461035]
[1673005868422,2.40693229,1243.8,1243.7,7.04241035]
[1673005868951,2.40693229,1243.8,1243.7,5.61711536]
[1673005869159,3.60458445,1244.0,1243.7,5.61711536]
[1673005869363,3.60458445,1244.0,1243.8,3.00735697]
[1673005869998,3.60458445,1244.0,1243.8,1.20294279]
[1673005870216,7.80951011,1244.0,1243.8,1.20294279]
[1673005873476,3.60458445,1243.9,1243.8,1.20294279]
[1673005875260,6.81238445,1244.0,1243.8,3.00735697]
[1673005875475,11.01731011,1244.0,1243.8,3.00735697]
[1673005876111,7.80951011,1244.0,1243.8,3.00735697]
[1673005877156,3.60458445,1243.9,1243.8,3.00735697]
[1673005877367,3.60458445,1243.9,1243.8,1.20294279]
[1673005878099,6.81238445,1243.9,1243.8,1.20294279]
[1673005878309,6.81238445,1243.9,1243.7,3.00735697]
[1673005881884,3.60458445,1243.9,1243.7,3.00735697]
[1673005882091,6.81238445,1243.9,1243.7,3.00735697]
[1673005883892,3.60458445,1243.9,1243.7,3.00735697]
[1673005884100,6.81238445,1243.9,1243.7,3.00735697]
[1673005884310,3.60458445,1243.9,1243.7,3.00735697]
[1673005884522,6.81238445,1243.9,1243.7,3.00735697]
[1673005884941,3.60458445,1243.9,1243.7,3.00735697]
[1673005885154,6.81238445,1243.9,1243.7,3.00735697]
[1673005885889,3.60458445,1243.9,1243.7,3.00735697]
[1673005886100,6.81238445,1243.9,1243.7,3.00735697]
[1673005888087,6.81238445,1243.9,1243.7,1.20294279]
[1673005888523,3.60458445,1243.9,1243.7,3.00735697]
[1673005888828,6.81238445,1243.9,1243.7,1.20294279]
[1673005890302,6.81238445,1243.9,1243.7,3.00735697]
[1673005891981,6.81238445,1243.9,1243.7,1.20294279]
[1673005892932,6.81238445,1243.9,1243.7,3.00735697]
[1673005893134,6.81238445,1243.9,1243.7,1.20294279]
[1673005894505,6.81238445,1243.9,1243.7,3.00735697]
[1673005894719,6.81238445,1243.9,1243.7,1.20294279]
[1673005894935,6.81238445,1243.9,1243.7,3.00735697]
[1673005895134,6.81238445,1243.9,1243.7,1.20294279]
[1673005895454,6.81238445,1243.9,1243.7,3.00735697]
[1673005895770,6.81238445,1243.9,1243.7,1.20294279]
[1673005895983,6.81238445,1243.9,1243.7,3.00735697]
[1673005899448,3.60458445,1243.9,1243.7,3.00735697]
[1673005899655,3.0101058,1243.8,1243.7,1.80441418]
[1673005900611,3.0101058,1243.8,1243.7,3.00965418]
[1673005901579,3.0101058,1243.8,1243.7,7.42152954]
[1673005901773,5.41977296,1243.8,1243.7,5.61711536]
[1673005902721,2.40966716,1243.8,1243.7,5.61711536]
[1673005902957,5.41977296,1243.8,1243.7,5.61711536]
[1673005903479,2.40966716,1243.8,1243.7,5.61711536]
[1673005904726,2.40966716,1243.8,1243.7,7.04242705]
[1673005904928,2.40966716,1243.8,1243.7,7.04241758]
[1673005905134,2.40966716,1243.8,1243.7,10.05391189]
[1673005905343,2.40966716,1243.8,1243.7,7.64459653]
[1673005905548,2.40966716,1243.8,1243.7,10.05476801]
[1673005907042,2.40966716,1243.8,1243.7,7.0432737]
[1673005909879,2.40966716,1243.8,1243.7,3.8354737]
[1673005910069,2.40966716,1243.8,1243.7,7.0432737]
[1673005916900,2.40966716,1243.8,1243.7,5.61797148]
[1673005920371,2.40966716,1243.8,1243.7,5.01481525]
[1673005921423,5.41977296,1243.8,1243.7,5.01481525]
[1673005922470,5.41977296,1243.8,1243.7,1.80701525]
[1673005922683,5.41977296,1243.8,1243.7,5.01481525]
[1673005924466,5.41977296,1243.8,1243.7,1.80701525]
[1673005924663,5.41977296,1243.8,1243.7,5.01481525]
[1673005925837,5.41977296,1243.8,1243.7,1.80701525]
[1673005926041,5.41977296,1243.8,1243.7,5.01481525]
[1673005926357,3.0101058,1243.8,1243.7,5.01481525]
[1673005926570,5.41841156,1243.8,1243.7,5.01481525]
[1673005926783,3.0101058,1243.8,1243.7,5.01481525]
[1673005927623,3.0101058,1243.8,1243.7,1.80701525]
[1673005928680,3.0101058,1243.8,1243.7,3.01194427]
[1673005930678,3.0101058,1243.8,1243.7,1.80701525]
[1673005942141,3.60458445,1243.9,1243.7,3.01222361]
[1673005942454,2.982285,1244.0,1243.8,17.67010599]
[1673005942662,2.982285,1244.0,1243.9,8.037]
[1673005942878,2.982285,1244.0,1243.9,12.47325966]
[1673005943290,2.66565348,1244.0,1243.9,20.08699539]
[1673005943500,3.01007212,1244.3,1243.9,20.08699539]
[1673005943814,3.01007212,1244.3,1244.2,4.41070391]
[1673005944654,3.01007212,1244.4,1244.2,4.41070391]
[1673005946870,3.01007212,1244.4,1244.2,3.2078]
[1673005948971,3.01007212,1244.5,1244.2,3.2078]
[1673005953496,3.01007212,1244.5,1244.2,11.2448]
[1673005955068,3.01007212,1244.5,1244.1,8.39648192]
[1673005955279,3.01007212,1244.5,1244.2,11.2448]
[1673005955491,6.21787212,1244.6,1244.2,11.2448]
[1673005961479,6.21787212,1244.6,1244.2,11.24479952]
[1673005963482,6.21787212,1244.6,1244.1,1.56238583]
[1673005963483,3.01007212,1244.6,1244.1,9.59938583]
[1673005963697,3.01007212,1244.6,1244.3,3.2078]
[1673005966531,3.2078,1244.5,1244.1,3.2078]
[1673005966750,3.2078,1244.3,1243.9,4.41070391]
[1673005967278,3.2078,1244.3,1243.9,3.2078]
[1673005967685,3.2078,1244.3,1243.9,4.41070391]
[1673005967899,3.2078,1244.3,1243.9,12.44770391]
[1673005968631,3.01007212,1244.4,1244.0,3.2078]
[1673005968632,6.21787212,1244.4,1244.0,3.2078]
[1673005969577,6.21787212,1244.4,1243.9,12.44770391]
[1673005969794,6.21787212,1244.4,1243.9,4.41070391]
[1673005970834,3.01007212,1244.3,1243.9,4.41070391]
[1673005976107,6.21787212,1244.3,1244.0,3.2078]
[1673005976523,6.21787212,1244.3,1244.0,4.41070391]
[1673005979364,3.01007212,1244.3,1244.0,4.41070391]
[1673005980512,3.01007212,1244.2,1244.1,1.20290391]
[1673005984197,3.01007212,1244.2,1244.0,3.2078]
[1673005984198,3.01007212,1244.2,1244.0,4.41070391]
[1673005984405,3.01007212,1244.1,1244.0,4.41070391]
[1673005984830,3.01007212,1244.2,1244.0,3.2078]
[1673005985039,3.01007212,1244.2,1244.0,4.40953068]
[1673005985667,3.01007212,1244.2,1244.1,1.20173068]
[1673005991764,3.01007212,1244.2,1244.0,4.40953068]
[1673005992083,3.01007212,1244.2,1244.1,1.20173068]
[1673006002276,3.01007212,1244.2,1244.1,3.00706794]
[1673006004583,6.80505287,1244.3,1244.1,3.00706794]
[1673006004902,11.00997853,1244.3,1244.1,3.00706794]
[1673006005533,6.80505287,1244.3,1244.1,3.00706794]
[1673006005851,3.59725287,1244.2,1244.1,3.00706794]
[1673006006164,3.59725287,1244.2,1244.1,1.20173068]
[1673006012157,3.59725287,1244.2,1244.0,3.00706794]
[1673006013204,6.80505287,1244.2,1244.0,3.00706794]
[1673006013415,6.80505287,1244.2,1244.1,1.20173068]
[1673006013942,3.2078,1244.2,1244.1,1.20173068]
[1673006014153,3.59725287,1244.2,1244.1,1.20173068]
[1673006018985,6.80505287,1244.2,1244.1,1.20173068]
[1673006020665,6.80505287,1244.2,1244.0,3.00706794]
[1673006024029,3.59725287,1244.2,1244.0,3.00706794]
[1673006024240,6.80505287,1244.2,1244.0,3.00706794]
[1673006024552,3.59725287,1244.2,1244.0,3.00706794]
[1673006024754,6.80505287,1244.2,1244.0,3.00706794]
[1673006027180,3.0128341,1244.1,1244.0,3.00984148]
[1673006027385,3.0128341,1244.1,1244.0,1.80533726]
[1673006029172,3.0128341,1244.1,1244.0,1.80055436]
[1673006029385,3.59725287,1244.2,1244.0,1.20492415]
[1673006031586,6.80505287,1244.2,1244.0,1.20492415]
[1673006043265,6.80505287,1244.2,1244.1,1.20492415]
[1673006044624,11.00997853,1244.2,1244.0,1.20492415]
[1673006044837,6.80505287,1244.2,1244.0,1.20492415]
[1673006045161,6.80505287,1244.2,1244.1,1.20492415]
[1673006046104,3.59725287,1244.2,1244.1,1.20492415]
[1673006047261,7.80217853,1244.3,1244.1,1.20492415]
[1673006049574,3.59725287,1244.3,1244.2,1.20492415]
[1673006050940,11.00997853,1244.4,1244.2,1.20492415]
[1673006051257,3.59725287,1244.3,1244.2,1.20492415]
[1673006052097,3.59725287,1244.3,1244.1,1.20492415]
[1673006052410,3.01273702,1244.2,1244.1,1.20402191]
[1673006053985,3.59725287,1244.3,1244.1,1.20402191]
[1673006055771,6.80505287,1244.3,1244.1,1.20402191]
[1673006059040,3.01204355,1244.2,1244.1,1.20402191]
[1673006059350,6.80505287,1244.3,1244.1,1.20402191]
[1673006060398,3.01194744,1244.2,1244.1,1.20402191]
[1673006060612,6.79828238,1244.3,1244.1,1.20402191]
[1673006061872,3.59048238,1244.3,1244.1,1.20402191]
[1673006062086,6.79828238,1244.3,1244.1,1.20402191]
[1673006062299,3.01187783,1244.2,1244.1,1.20402191]
[1673006062505,3.01187783,1244.2,1244.0,5.61360782]
[1673006062826,3.01187783,1244.2,1244.1,1.20255434]
[1673006063025,4.20492566,1244.4,1244.1,1.20255434]
[1673006063555,3.2078,1244.3,1244.1,1.20255434]
[1673006065657,7.41272566,1244.3,1244.1,1.20255434]
[1673006065863,7.41272566,1244.3,1244.0,4.41035434]
[1673006066075,3.01179037,1244.1,1244.0,4.41035434]
[1673006067129,3.01179037,1244.1,1244.0,1.20255434]
[1673006071222,3.01179037,1244.1,1243.9,3.8308589]
[1673006072181,3.01179037,1244.1,1243.9,7.0386589]
[1673006072390,3.01179037,1244.1,1243.9,5.61360782]
[1673006073968,3.01179037,1244.1,1244.0,1.20322541]
[1673006074490,7.41272566,1244.3,1244.0,1.20322541]
[1673006074698,3.01221712,1244.1,1244.0,1.20322541]
[1673006075848,6.82246735,1244.2,1244.0,1.20322541]
[1673006078598,3.61466735,1244.2,1244.0,1.20322541]
[1673006078804,6.82246735,1244.2,1244.0,1.20322541]
[1673006079639,3.61466735,1244.2,1244.0,1.20322541]
[1673006079847,6.82246735,1244.2,1244.0,1.20322541]
[1673006081427,3.01220522,1244.1,1244.0,1.20322541]
[1673006082158,3.01220522,1244.1,1243.9,5.61360782]
[1673006083951,3.01220522,1244.1,1244.0,1.20340903]
[1673006085103,3.01220522,1244.1,1243.9,5.61360782]
[1673006086576,6.82246735,1244.2,1244.0,1.20368659]
[1673006088360,3.01231031,1244.1,1244.0,1.20368659]
[1673006089306,3.01231031,1244.1,1244.0,3.00947191]
[1673006091621,6.82246735,1244.2,1244.0,3.00947191]
[1673006092674,3.01277796,1244.1,1244.0,3.00947191]
[1673006093405,6.82246735,1244.2,1244.0,3.00947191]
[1673006093729,3.01280837,1244.1,1244.0,3.00947191]
[1673006093938,6.82246735,1244.2,1244.0,3.00947191]
[1673006099190,6.82246735,1244.2,1244.0,1.20368659]
[1673006100663,6.82246735,1244.2,1244.0,3.00947191]
[1673006102866,11.02739301,1244.2,1244.0,3.00947191]
[1673006103072,6.82246735,1244.2,1244.1,1.20368659]
[1673006106660,11.02739301,1244.2,1244.1,1.20368659]
[1673006108450,11.02739301,1244.2,1244.0,3.00947191]
[1673006108655,3.61466735,1244.1,1244.0,1.20368659]
[1673006110761,6.82246735,1244.1,1244.0,1.20368659]
[1673006112960,3.61466735,1244.1,1244.0,1.20368659]
[1673006113176,7.81959301,1244.2,1244.0,3.00947191]
[1673006114856,3.61466735,1244.2,1244.0,3.00947191]
[1673006115381,7.81959301,1244.2,1244.0,3.00947191]
[1673006115592,3.61466735,1244.2,1244.0,3.00947191]
[1673006115804,6.82246735,1244.2,1244.0,3.00947191]
[1673006118233,11.02739301,1244.2,1244.0,3.00947191]
[1673006119382,3.61466735,1244.1,1244.0,1.20368659]
[1673006119589,3.61466735,1244.1,1244.0,3.00947191]
[1673006120015,3.61466735,1244.1,1244.0,1.20368659]
[1673006120544,3.61466735,1244.1,1244.0,3.00947191]
[1673006120753,3.61466735,1244.1,1244.0,1.20368659]
[1673006124122,3.61466735,1244.1,1244.0,3.00947191]
[1673006124533,3.61466735,1244.1,1244.0,1.20368659]
[1673006128117,6.82246735,1244.1,1244.0,1.20368659]
[1673006131895,3.61466735,1244.1,1244.0,1.20368659]
[1673006132105,6.82246735,1244.1,1244.0,1.20368659]
[1673006132424,3.61466735,1244.1,1244.0,1.20368659]
[1673006132731,3.2078,1244.1,1244.0,3.00947191]
[1673006132941,3.01418882,1244.1,1244.0,4.21200818]
[1673006133259,3.61466735,1244.2,1244.0,3.01044952]
[1673006133469,3.61466735,1244.2,1244.1,1.20424916]
[1673006133682,0.00297533,1244.1,1244.0,3.01044952]
[1673006133883,0.00297533,1244.1,1244.0,1.80620036]
[1673006134418,0.00297533,1244.1,1244.0,3.01050647]
[1673006136614,3.61764268,1244.1,1244.0,3.01050647]
[1673006137352,8.97551902,1244.1,1243.9,3.61011393]
[1673006137571,6.82579312,1244.0,1243.8,3.01050647]
[1673006137883,3.01357469,1243.9,1243.8,3.01050647]
[1673006138094,3.01362086,1243.9,1243.8,3.01050647]
[1673006138404,3.01362086,1243.9,1243.8,3.01038788]
[1673006139459,3.01362086,1243.9,1243.8,3.01026575]
[1673006140300,3.01362086,1243.9,1243.8,3.00362872]
[1673006140614,3.01362086,1243.9,1243.8,1.79956333]
[1673006141559,3.01362086,1243.9,1243.8,4.20537115]
[1673006141773,3.01362086,1243.9,1243.8,1.79956333]
[1673006142294,3.01362086,1243.9,1243.8,4.20537115]
[1673006142608,3.01362086,1243.9,1243.8,1.79956333]
[1673006143553,6.22142086,1243.9,1243.8,1.79956333]
[1673006143869,3.2078,1243.9,1243.6,1.20512158]
[1673006144075,3.01210917,1243.7,1243.5,3.83136872]
[1673006144281,3.01210917,1243.7,1243.6,1.20517012]
[1673006146182,6.21990917,1243.7,1243.6,1.20517012]
[1673006146393,6.21990917,1243.7,1243.5,1.20517012]
[1673006150493,6.21990917,1243.7,1243.4,1.20517012]
[1673006150803,6.21990917,1243.7,1243.5,1.20517012]
[1673006151750,6.21990917,1243.7,1243.4,1.20517012]
[1673006157426,3.2078,1243.7,1243.4,1.20517012]
[1673006160996,6.21990917,1243.7,1243.4,1.20517012]
[1673006161737,6.21990917,1243.7,1243.3,4.41297012]
[1673006165409,6.21990917,1243.7,1243.4,8.037]
[1673006165617,3.01210917,1243.7,1243.5,4.41297012]
[1673006165829,3.01210917,1244.0,1243.6,1.20517012]
[1673006166040,3.01210917,1243.9,1243.6,1.20517012]
[1673006166350,3.01210917,1244.0,1243.6,1.20517012]
[1673006166773,3.01210917,1244.0,1243.7,3.2078]
[1673006172036,6.21990917,1244.0,1243.6,4.41297012]
[1673006172669,3.01210917,1243.9,1243.6,4.41297012]
[1673006175185,3.01210917,1243.9,1243.7,1.20517012]
[1673006176338,6.21990917,1244.0,1243.7,1.20517012]
[1673006178125,3.01210917,1243.9,1243.7,1.20517012]
[1673006182862,3.01210917,1244.0,1243.8,4.41297012]
[1673006184861,3.0150845,1244.1,1243.8,4.41297012]
[1673006186742,3.01210917,1244.0,1243.8,4.41297012]
[1673006187591,3.01210917,1244.0,1243.8,1.20517012]
[1673006187802,3.01210917,1244.0,1243.8,4.41297012]
[1673006188858,3.01210917,1244.0,1243.8,1.20517012]
[1673006189173,3.01210917,1244.0,1243.8,4.41297012]
[1673006189900,3.01210917,1244.0,1243.8,3.2078]
[1673006190319,3.01210917,1244.0,1243.7,9.24217012]
[1673006190529,3.01210917,1244.0,1243.7,12.44997012]
[1673006192948,3.01210917,1244.0,1243.7,9.24217012]
[1673006193166,3.01210917,1244.0,1243.7,12.44997012]
[1673006193790,3.01210917,1244.0,1243.7,9.24217012]
[1673006193998,3.01210917,1244.0,1243.7,12.44997012]
[1673006194842,3.01210917,1244.0,1243.7,9.24217012]
[1673006195053,3.01210917,1244.0,1243.7,12.44997012]
[1673006195997,3.01210917,1244.0,1243.8,1.20517012]
[1673006196205,3.01210917,1244.0,1243.7,12.44997012]
[1673006196631,3.01210917,1244.0,1243.8,1.20517012]
[1673006199053,3.01210917,1244.0,1243.8,4.41297012]
[1673006199886,3.01210917,1244.0,1243.8,1.20517012]
[1673006200210,3.01210917,1243.9,1243.7,1.20517012]
[1673006200519,3.01210917,1243.9,1243.7,3.01010986]
[1673006202836,3.01210917,1243.9,1243.8,1.20517012]
[1673006203364,3.01210917,1243.9,1243.7,3.01010986]
[1673006204616,3.01210917,1243.9,1243.8,1.20517012]
[1673006204830,6.822331,1244.0,1243.8,1.20517012]
[1673006209143,3.614531,1244.0,1243.8,1.20517012]
[1673006209346,6.822331,1244.0,1243.8,1.20517012]
[1673006215245,11.02725666,1244.0,1243.8,1.20517012]
[1673006219133,6.822331,1244.0,1243.8,3.01010986]
[1673006220185,6.822331,1244.0,1243.8,1.20517012]
[1673006220391,11.02725666,1244.0,1243.8,1.20517012]
[1673006221874,7.81945666,1244.0,1243.8,1.20517012]
[1673006222188,11.02725666,1244.0,1243.8,1.20517012]
[1673006223555,7.81945666,1244.0,1243.8,1.20517012]
[1673006223765,11.02725666,1244.0,1243.8,1.20517012]
[1673006228816,3.614531,1243.9,1243.8,1.20517012]
[1673006234493,3.614531,1243.9,1243.8,3.01010986]
[1673006238482,11.02725666,1244.0,1243.8,3.01010986]
[1673006239008,3.614531,1243.9,1243.8,3.01010986]
[1673006239315,3.614531,1243.9,1243.8,1.80493974]
[1673006239531,3.614531,1243.9,1243.8,3.01098437]
[1673006240369,3.614531,1243.9,1243.8,1.80493974]
[1673006240902,3.614531,1243.9,1243.8,3.01137213]
[1673006241109,3.614531,1243.9,1243.8,1.80493974]
[1673006241429,3.614531,1244.0,1243.8,2.40580782]
[1673006241634,3.614531,1244.0,1243.9,3.01549127]
[1673006242478,3.614531,1244.0,1243.9,1.20619651]
[1673006242688,3.614531,1244.0,1243.9,3.01549127]
[1673006243851,11.03023199,1244.1,1243.9,1.80929476]
[1673006244163,11.03023199,1244.1,1243.9,3.01529639]
[1673006245001,6.82530633,1244.1,1243.9,3.01529639]
[1673006246161,6.82530633,1244.1,1244.0,1.20600163]
[1673006246363,6.82530633,1244.1,1243.9,3.01529639]
[1673006246573,3.01304625,1244.0,1243.9,3.01529639]
[1673006250368,3.61750633,1244.1,1243.9,1.20600163]
[1673006250993,7.81945666,1244.1,1243.9,1.20600163]
[1673006251201,3.614531,1244.1,1243.9,1.20600163]
[1673006253418,3.0115973,1244.0,1243.9,3.01529639]
[1673006254471,3.0115973,1244.0,1243.9,1.20600163]
[1673006254998,3.0115973,1244.0,1243.9,3.01529639]
[1673006255936,3.0115973,1244.0,1243.9,1.80929476]
[1673006256356,3.0115973,1244.0,1243.9,3.01375039]
[1673006256673,3.0115973,1244.0,1243.9,6.22155039]
[1673006258037,3.0068466,1244.1,1243.9,7.03866387]
[1673006258363,24.60925666,1244.4,1244.0,4.21115419]
[1673006258672,24.60925666,1244.4,1244.0,3.00902803]
[1673006258673,3.614531,1244.3,1244.0,3.00902803]
[1673006259726,3.614531,1244.3,1244.0,1.20368166]
[1673006260036,3.614531,1244.3,1244.0,3.00902803]
[1673006260670,3.614531,1244.3,1244.0,1.20368166]
[1673006261090,3.614531,1244.3,1244.0,3.00902803]
[1673006262353,3.614531,1244.3,1244.0,1.20368166]
[1673006262981,3.614531,1244.3,1244.0,4.41148166]
[1673006263503,3.614531,1244.3,1244.0,1.20368166]
[1673006263715,3.614531,1244.3,1244.0,4.41148166]
[1673006264129,3.614531,1244.3,1244.0,1.20368166]
[1673006264344,3.614531,1244.3,1244.0,4.41148166]
[1673006264767,3.614531,1244.3,1244.0,1.20368166]
[1673006264984,3.614531,1244.3,1244.0,4.41148166]
[1673006265401,11.02725666,1244.4,1244.0,4.41148166]
[1673006266341,3.614531,1244.3,1244.0,4.41148166]
[1673006267712,6.822331,1244.3,1244.0,4.41148166]
[1673006269913,6.822331,1244.3,1244.0,6.21682803]
[1673006270118,3.2078,1244.3,1244.0,6.21682803]
[1673006270440,3.2078,1244.3,1244.0,4.41148166]
[1673006271495,6.822331,1244.3,1244.0,4.41148166]
[1673006277903,6.822331,1244.3,1244.0,6.21682803]
[1673006278114,3.00811418,1244.2,1244.0,6.21682803]
[1673006279062,3.00811418,1244.1,1244.0,6.21682803]
[1673006286834,3.00811418,1244.1,1244.0,3.00902803]
[1673006289046,3.00811418,1244.1,1244.0,1.80534637]
[1673006292403,3.00811418,1244.1,1244.0,4.21115419]
[1673006293671,3.00811418,1244.1,1244.0,2.40580782]
[1673006294402,3.00811418,1244.1,1244.0,5.61360782]
[1673006294613,3.00811418,1244.1,1244.0,7.03861764]
[1673006294825,3.00811418,1244.1,1244.0,5.61360782]
[1673006296086,3.00811418,1244.1,1244.0,2.40580782]
[1673006296408,3.00811418,1244.1,1244.0,5.61360782]
[1673006296608,3.00811418,1244.1,1244.0,3.83084196]
[1673006296926,3.00811418,1244.1,1244.0,5.61360782]
[1673006297133,3.00811418,1244.1,1244.0,7.03864196]
[1673006301225,6.822331,1244.2,1244.0,1.80893336]
[1673006301441,3.614531,1244.1,1244.0,3.01495946]
[1673006301652,3.614531,1244.1,1244.0,1.2060261]
[1673006302075,7.81945666,1244.1,1244.0,1.2060261]
[1673006303015,3.614531,1244.1,1244.0,1.2060261]
[1673006303225,3.614531,1244.1,1243.9,3.01495946]
[1673006303435,3.614531,1244.1,1244.0,1.2060261]
[1673006306066,6.822331,1244.1,1244.0,1.2060261]
[1673006307541,3.614531,1244.1,1244.0,1.2060261]
[1673006307963,6.822331,1244.1,1243.9,3.01495946]
[1673006308175,3.00990468,1244.0,1243.9,3.01495946]
[1673006308907,3.00990468,1244.0,1243.9,4.21474118]
[1673006310584,3.00990468,1244.0,1243.9,7.42254118]
[1673006311954,3.00990468,1244.0,1243.9,5.01673336]
[1673006312474,3.00990468,1244.0,1243.9,1.80893336]
[1673006329287,3.00990468,1244.0,1243.9,4.21474118]
[1673006330235,3.00990468,1244.0,1243.9,5.61360782]
[1673006330445,3.00990468,1244.1,1243.9,5.61360782]
[1673006330651,3.00990468,1244.0,1243.9,7.42096391]
[1673006331283,3.00990468,1244.1,1243.9,7.03871186]
[1673006331609,3.00990468,1244.1,1244.0,3.01233535]
[1673006335384,3.00990468,1244.1,1244.0,4.21320903]
[1673006336330,3.00990468,1244.1,1244.0,1.20512305]
[1673006336331,3.2078,1244.1,1244.0,1.20512305]
[1673006336538,6.822331,1244.1,1244.0,1.20512305]
[1673006337171,0.00790181,1244.0,1243.9,3.01252426]
[1673006337380,3.01744266,1244.0,1243.9,3.01269264]
[1673006337585,3.0174429,1244.0,1243.9,1.80740121]
[1673006344210,3.01927539,1244.0,1243.9,1.80740121]
[1673006344946,0.00790181,1244.0,1243.9,1.80740121]
[1673006345157,3.01919219,1244.0,1243.9,1.80740121]
[1673006349880,0.00790181,1244.0,1243.9,1.80740121]
[1673006350404,3.01978191,1244.0,1243.9,1.80740121]
[1673006350616,3.01978568,1244.0,1243.9,1.80740121]
[1673006351038,3.62243281,1244.0,1243.9,1.20559228]
[1673006351454,7.82735847,1244.0,1243.7,1.20559228]
[1673006351669,6.21770917,1243.8,1243.7,1.20559228]
[1673006352932,3.2078,1243.8,1243.7,1.20559228]
[1673006353560,6.21541187,1243.8,1243.6,1.20559228]
[1673006354809,6.21541187,1243.8,1243.7,1.20559228]
[1673006355026,6.21541187,1243.8,1243.6,1.20559228]
[1673006361331,3.2078,1243.8,1243.6,1.20559228]
[1673006361553,6.21541187,1243.8,1243.6,1.20559228]
[1673006366597,6.21541187,1243.8,1243.5,1.20559228]
[1673006368382,3.2078,1243.6,1243.4,1.20559228]
[1673006368910,6.21541187,1243.6,1243.4,1.20559228]
[1673006369328,3.2078,1243.6,1243.4,1.20559228]
[1673006371957,3.00761187,1243.7,1243.4,1.20559228]
[1673006372276,3.2078,1243.6,1243.4,1.20559228]
[1673006373954,3.2078,1243.6,1243.3,4.41339228]
[1673006375116,3.2078,1243.6,1243.3,1.20559228]
[1673006375325,3.2078,1243.6,1243.4,1.20559228]
[1673006384053,6.21541187,1243.7,1243.4,1.20559228]
[1673006384259,6.21041523,1243.7,1243.4,1.20559228]
[1673006386053,3.00261523,1243.7,1243.4,1.20559228]
[1673006386261,6.21041523,1243.7,1243.4,1.20559228]
[1673006386574,3.00261523,1243.7,1243.4,1.20559228]
[1673006386775,6.21041523,1243.7,1243.4,1.20559228]
[1673006386994,6.21041523,1243.7,1243.5,1.20559228]
[1673006389408,3.2078,1243.7,1243.5,1.20559228]
[1673006390784,3.614531,1243.8,1243.5,1.20559228]
[1673006391303,3.2078,1243.7,1243.5,1.20559228]
[1673006391934,3.614531,1243.8,1243.5,1.20559228]
[1673006392144,3.2078,1243.7,1243.5,1.20559228]
[1673006394875,3.614531,1243.8,1243.5,1.20559228]
[1673006395087,3.2078,1243.7,1243.5,1.20559228]
[1673006396246,3.2078,1243.7,1243.6,1.20559228]
[1673006396660,3.2078,1243.7,1243.5,1.20559228]
[1673006397293,3.2078,1243.7,1243.6,1.20559228]
[1673006397610,3.2078,1243.7,1243.5,1.20559228]
[1673006400444,3.2078,1243.7,1243.6,1.20559228]
[1673006401171,3.2078,1243.7,1243.5,1.20559228]
[1673006401385,6.822331,1243.7,1243.5,1.20559228]
[1673006403278,11.02725666,1243.7,1243.5,1.20559228]
[1673006403906,3.614531,1243.6,1243.5,1.20559228]
[1673006404649,6.822331,1243.7,1243.5,1.20559228]
[1673006406436,11.02725666,1243.7,1243.5,1.20559228]
[1673006409068,3.2078,1243.6,1243.5,1.20559228]
[1673006411063,3.2078,1243.6,1243.5,3.01459953]
[1673006411379,3.2078,1243.6,1243.5,1.20559228]
[1673006412645,3.2078,1243.6,1243.5,3.01459953]
[1673006412961,3.2078,1243.6,1243.5,1.80900725]
[1673006413371,3.2078,1243.6,1243.5,3.01492487]
[1673006416104,3.2078,1243.6,1243.5,1.20591762]
[1673006416844,6.822331,1243.6,1243.5,1.20591762]
[1673006417476,3.2078,1243.6,1243.5,1.20591762]
[1673006419267,6.822331,1243.6,1243.5,1.20591762]
[1673006423357,3.614531,1243.6,1243.5,1.20591762]
[1673006423686,6.822331,1243.6,1243.5,1.20591762]